bitfinex/quotes_ETHUSD_20240716
["timestamp","ask_amount","ask_price","bid_price","bid_amount"]
[1721144258627,0.0782641,3464.7,3464.6,16.058423]
[1721144258802,0.0782641,3464.7,3464.6,15.508423]
[1721144260495,0.0782641,3464.7,3464.6,12.622093]
[1721144260906,0.0782641,3464.7,3464.6,15.508423]
[1721144262198,0.0782641,3464.7,3464.6,15.508423]
[1721144263020,0.005,3465.9,3465.2,2.88582]
[1721144263330,0.005,3465.9,3465.2,3.479002]
[1721144263827,2.89026,3465.9,3465.2,0.593182]
[1721144264200,2.89026,3465.9,3465.0,2.88593]
[1721144264405,2.89026,3465.9,3464.8,2.88613]
[1721144264406,0.005,3465.9,3464.9,2.88604]
[1721144264612,2.88538,3465.8,3464.6,6.689763]
[1721144264819,2.88538,3465.8,3464.7,3.0]
[1721144265229,2.88538,3465.8,3464.6,3.689763]
[1721144265431,2.88538,3465.8,3465.1,2.88591]
[1721144265749,2.88552,3465.6,3464.8,2.88616]
[1721144266046,3.284,3465.2,3464.6,5.37857]
[1721144266205,2.21308187,3465.2,3464.6,5.37857]
[1721144266402,2.21308187,3465.2,3464.6,3.318799]
[1721144266603,5.09893187,3465.2,3464.6,2.4923]
[1721144266933,0.005,3465.9,3463.3,0.2898]
[1721144266934,2.88639,3464.6,3463.6,2.4996]
[1721144267118,3.284,3464.1,3463.6,2.4996]
[1721144267644,3.284,3464.1,3463.6,5.38676]
[1721144267944,2.88634,3464.6,3463.9,2.88688]
[1721144267945,3.284,3464.6,3463.9,2.88688]
[1721144268142,3.284,3464.6,3464.0,0.288688]
[1721144268744,3.284,3464.6,3464.0,3.175498]
[1721144268929,2.88606,3465.0,3464.3,2.88658]
[1721144268930,2.886,3465.0,3464.3,2.88658]
[1721144269131,2.886,3465.0,3464.0,0.288688]
[1721144269338,2.88616,3464.9,3464.0,3.175488]
[1721144269521,6.17034,3464.6,3464.1,0.6062458]
[1721144269720,6.17034,3464.6,3464.0,0.288688]
[1721144269721,3.284,3464.6,3464.0,0.288688]
[1721144270136,2.88655,3464.4,3464.0,0.288688]
[1721144270323,2.88655,3464.4,3463.6,2.4996]
[1721144270743,3.284,3464.1,3463.6,2.4996]
[1721144270941,3.284,3464.1,3463.1,2.3721]
[1721144271256,3.284,3463.6,3463.1,2.3721]
[1721144271646,6.17118,3463.6,3463.1,2.3721]
[1721144271952,6.17118,3463.6,3463.1,2.60931]
[1721144272534,6.17118,3463.6,3463.1,0.23721]
[1721144272866,3.284,3463.6,3463.1,0.23721]
[1721144273065,3.284,3463.6,3463.1,3.12479]
[1721144273272,2.88626,3464.7,3463.5,2.4555]
[1721144273443,3.0,3465.0,3463.6,0.534281]
[1721144273444,2.88633,3464.6,3463.6,0.534281]
[1721144273765,2.88682,3464.1,3463.1,3.12477]
[1721144273932,2.88682,3464.1,3463.1,0.23721]
[1721144273933,2.88686,3464.0,3463.1,0.23721]
[1721144274133,2.88697,3463.9,3463.1,0.23721]
[1721144274329,2.88681,3464.1,3463.1,0.23721]
[1721144274540,3.284,3464.3,3463.4,2.88733]
[1721144274733,3.284,3464.3,3463.6,2.88711]
[1721144274964,2.88673,3464.2,3463.5,0.577481]
[1721144275539,2.88675,3464.1,3463.5,0.577481]
[1721144275857,2.88675,3464.1,3463.2,2.88749]
[1721144276059,3.284,3464.8,3463.7,2.88707]
[1721144276298,6.17017,3464.8,3463.8,2.88694]
[1721144276473,5.77257,3464.7,3463.9,2.88691]
[1721144276673,5.77257,3464.7,3463.7,2.88707]
[1721144276674,2.88635,3464.6,3463.7,2.88701]
[1721144276838,2.88635,3464.6,3463.5,2.88722]
[1721144276839,2.88635,3464.6,3463.8,0.577423]
[1721144277377,3.284,3464.8,3463.4,2.4555]
[1721144277576,2.88667,3464.2,3463.4,2.4555]
[1721144277779,2.88686,3464.0,3463.1,0.23721]
[1721144278074,2.88693,3463.9,3463.1,0.23721]
[1721144278274,2.88703,3463.8,3463.0,2.3944]
[1721144278575,2.88725,3463.5,3463.0,2.3944]
[1721144280112,2.88725,3463.5,3462.5,2.88808]
[1721144280113,3.284,3463.8,3462.5,2.477]
[1721144280409,2.88768,3463.0,3462.5,2.477]
[1721144280568,2.88781,3462.9,3462.5,2.477]
[1721144280767,2.88764,3463.1,3462.5,2.7247]
[1721144281007,2.88764,3463.1,3462.5,0.2477]
[1721144281172,3.284,3463.3,3461.8,2.4508]
[1721144281724,2.88801,3462.6,3461.8,2.4508]
[1721144282309,2.88804,3462.6,3461.8,5.33945]
[1721144282596,2.88754,3463.2,3462.3,2.88824]
[1721144282597,2.88755,3463.2,3462.3,2.88824]
[1721144282800,2.88771,3463.0,3462.1,2.8884]
[1721144282982,2.88771,3463.0,3462.2,3.465975]
[1721144283411,2.88751,3463.2,3462.3,2.88825]
[1721144283577,3.284,3463.3,3462.3,2.88825]
[1721144283578,6.17147,3463.3,3462.5,2.88807]
[1721144284217,3.284,3463.3,3462.5,2.88807]
[1721144284501,6.17145,3463.3,3462.7,2.4508]
[1721144285402,6.17145,3463.3,3462.7,2.984678]
[1721144285575,6.17145,3463.3,3462.2,5.836815]
[1721144285766,3.284,3463.3,3462.5,2.88801]
[1721144286567,3.284,3463.3,3462.6,2.88799]
[1721144286767,2.88701,3463.8,3462.7,2.8879]
[1721144286768,3.284,3463.8,3462.7,2.8879]
[1721144287004,2.88726,3463.5,3462.8,0.577589]
[1721144287299,2.88724,3463.6,3462.8,0.577589]
[1721144287501,3.284,3463.8,3462.8,0.577589]
[1721144287502,2.88725,3463.5,3462.8,0.577589]
[1721144287721,3.284,3463.8,3462.8,0.577589]
[1721144288020,3.284,3463.8,3463.1,2.88757]
[1721144288337,2.88698,3463.9,3463.2,0.521827]
[1721144288622,3.0,3464.5,3462.9,5.21837]
[1721144288623,6.17104,3463.8,3462.9,2.3307]
[1721144288777,2.88725,3463.6,3462.9,2.3307]
[1721144288984,2.88726,3463.5,3462.9,2.3307]
[1721144289206,3.284,3463.8,3462.9,2.3307]
[1721144289207,6.17103,3463.8,3462.9,2.3307]
[1721144289405,3.284,3463.8,3463.0,0.5796199]
[1721144289598,2.88709,3463.7,3463.0,0.5796199]
[1721144289784,2.88721,3463.6,3463.0,0.5796199]
[1721144290309,2.88728,3463.5,3463.0,0.5796199]
[1721144290612,2.88728,3463.5,3462.9,2.3307]
[1721144290613,2.88733,3463.4,3462.9,2.3307]
[1721144290814,2.88717,3463.6,3462.9,2.3307]
[1721144291181,6.17103,3463.8,3462.9,5.21842]
[1721144291379,3.284,3463.8,3462.9,2.3307]
[1721144291706,3.284,3463.8,3463.1,2.88757]
[1721144292618,3.284,3463.8,3463.2,2.88749]
[1721144292794,3.284,3464.3,3463.1,3.046]
[1721144292995,2.88636,3464.6,3463.7,2.88701]
[1721144293381,2.88646,3464.5,3463.7,2.88701]
[1721144293586,2.88651,3464.4,3463.7,0.577419]
[1721144294110,2.88672,3464.2,3463.3,2.3872]
[1721144294327,3.284,3464.3,3463.3,2.3872]
[1721144294328,2.88691,3464.0,3463.3,2.3872]
[1721144294511,3.284,3464.3,3463.3,2.3872]
[1721144294512,6.17062,3464.3,3463.3,2.3872]
[1721144294717,2.88715,3463.7,3463.3,2.3872]
[1721144294895,2.88684,3464.0,3463.3,2.62592]
[1721144295332,2.88717,3463.6,3463.3,2.62592]
[1721144295543,2.887,3463.8,3463.3,2.62592]
[1721144295759,2.88693,3463.9,3463.3,2.62592]
[1721144296275,3.284,3464.3,3463.3,2.62592]
[1721144296561,3.284,3464.3,3463.3,2.3872]
[1721144296863,2.88709,3463.7,3463.3,2.3872]
[1721144297333,5.7739,3463.9,3463.3,2.3872]
[1721144297533,2.88676,3464.1,3463.3,2.3872]
[1721144297853,2.88676,3464.1,3463.3,5.27461]
[1721144298058,3.284,3464.3,3463.4,3.703484]
[1721144298259,2.88633,3464.6,3463.6,2.8871]
[1721144298582,2.8865,3464.4,3463.6,2.88711]
[1721144299069,6.1702,3464.8,3463.9,2.4332]
[1721144299425,2.88627,3464.7,3463.9,2.4332]
[1721144299624,2.88627,3464.7,3464.0,0.532014]
[1721144299859,2.88673,3464.2,3463.9,2.4332]
[1721144300046,3.284,3464.3,3463.9,2.4332]
[1721144300256,2.88625,3464.7,3463.9,2.4332]
[1721144300457,2.88635,3464.6,3463.9,2.965219]
[1721144301140,3.284,3464.8,3463.9,5.852129]
[1721144301340,2.88613,3464.9,3464.0,0.05772461]
[1721144301549,6.16994,3465.1,3464.1,2.88674]
[1721144301750,6.16994,3465.1,3464.0,2.88676]
[1721144301938,2.88577,3465.3,3464.0,2.88676]
[1721144301939,2.88577,3465.3,3464.2,2.88661]
[1721144302140,2.88561,3465.5,3464.3,2.88655]
[1721144302449,3.284,3465.6,3464.9,2.88607]
[1721144303278,2.89025,3465.9,3465.0,2.3508]
[1721144304258,0.005,3465.9,3465.1,2.88591]
[1721144304460,0.005,3465.9,3465.2,0.523671]
[1721144304461,2.89025,3465.9,3465.2,0.523671]
[1721144305071,2.88544,3465.7,3465.2,0.523671]
[1721144305267,2.88544,3465.7,3465.0,2.3508]
[1721144305469,2.88544,3465.7,3464.5,3.0]
[1721144305470,2.88554,3465.6,3464.5,2.3266]
[1721144305634,2.88572,3465.4,3464.5,2.3266]
[1721144305836,2.88593,3465.1,3464.5,2.3266]
[1721144306278,2.88611,3464.9,3464.5,2.3266]
[1721144306789,2.88633,3464.6,3463.5,5.32511]
[1721144307069,2.88633,3464.6,3463.6,0.821249]
[1721144307070,2.88652,3464.4,3463.6,0.821249]
[1721144307379,3.284,3464.4,3463.6,0.821249]
[1721144307562,10.03791394,3465.9,3463.5,2.4379]
[1721144307563,2.88619,3464.8,3463.7,2.88702]
[1721144307739,2.88638,3464.6,3463.7,2.88702]
[1721144307940,2.88659,3464.3,3463.5,2.4379]
[1721144308270,3.284,3464.2,3463.5,2.4379]
[1721144308469,2.88711,3463.7,3462.8,2.88783]
[1721144308670,2.88711,3463.7,3462.9,2.546083]
[1721144308889,6.17111,3463.7,3462.9,2.546083]
[1721144309238,2.88718,3463.6,3462.9,2.546083]
[1721144309445,2.88734,3463.4,3462.9,2.546083]
[1721144309878,2.8875,3463.2,3462.9,2.546083]
[1721144310206,2.88768,3463.0,3462.3,2.2573]
[1721144310481,2.88769,3463.0,3462.3,2.2573]
[1721144310869,3.284,3463.7,3462.4,2.88812]
[1721144311172,2.88728,3463.5,3462.6,2.88799]
[1721144312648,3.284,3463.7,3462.6,2.88799]
[1721144312866,6.17108,3463.7,3462.9,2.4595]
[1721144313839,2.8874,3463.4,3462.9,2.4595]
[1721144314071,2.88726,3463.5,3462.9,2.4595]
[1721144314271,2.88746,3463.3,3462.7,0.288799]
[1721144315002,3.284,3463.7,3462.7,0.288799]
[1721144315003,2.88759,3463.1,3462.7,0.288799]
[1721144315304,2.88759,3463.1,3462.4,2.4692]
[1721144315504,2.88791,3462.8,3462.4,2.4692]
[1721144315707,2.88772,3463.0,3462.4,2.4692]
[1721144316001,2.88777,3462.9,3462.4,2.4692]
[1721144316203,2.88777,3462.9,3462.4,2.71612]
[1721144316573,2.88781,3462.9,3462.4,2.71612]
[1721144316808,2.88786,3462.8,3462.4,0.24692]
[1721144316978,2.88781,3462.9,3461.9,2.2999]
[1721144316979,2.88794,3462.7,3461.9,2.2999]
[1721144317475,2.88781,3462.9,3461.9,2.2999]
[1721144317476,2.888,3462.6,3461.9,2.2999]
[1721144318179,2.88812,3462.5,3461.9,2.2999]
[1721144318380,3.284,3462.7,3461.9,2.2999]
[1721144318381,2.88841,3462.2,3461.9,2.2999]
[1721144319169,2.88823,3462.4,3461.9,2.2999]
[1721144319373,3.284,3462.7,3461.9,2.52989]
[1721144319573,2.888,3462.6,3461.9,2.52989]
[1721144319809,3.284,3462.7,3461.9,5.41844]
[1721144320013,2.8876,3463.1,3462.0,0.05775815]
[1721144320172,2.8876,3463.1,3462.1,2.88834]
[1721144320173,2.8877,3463.0,3462.1,2.88834]
[1721144320375,2.88785,3462.8,3462.2,0.830678]
[1721144320708,2.8876,3463.1,3462.1,2.88836]
[1721144321005,2.88768,3463.0,3462.1,2.88836]
[1721144321367,2.88768,3463.0,3462.2,2.88833]
[1721144321368,2.88769,3463.0,3462.2,2.88833]
[1721144321605,5.77542,3463.0,3462.2,2.88833]
[1721144321819,2.88776,3462.9,3462.0,2.88842]
[1721144322110,3.284,3463.2,3462.1,0.830694]
[1721144322111,2.88805,3462.6,3462.1,0.830694]
[1721144322276,2.88805,3462.6,3461.9,2.52989]
[1721144322277,3.284,3462.7,3461.9,2.52989]
[1721144322474,3.284,3462.7,3462.1,2.8884]
[1721144322674,3.284,3462.7,3462.0,2.88849]
[1721144323606,3.284,3462.7,3461.9,2.52989]
[1721144323806,3.284,3462.7,3462.0,0.252989]
[1721144324171,3.284,3462.7,3462.0,3.141489]
[1721144326091,2.888,3462.6,3462.0,0.252989]
[1721144326297,3.284,3462.7,3462.1,2.88839]
[1721144326475,2.8876,3463.1,3462.2,3.7442859]
[1721144326675,2.8874,3463.4,3462.4,2.3989]
[1721144326676,2.88734,3463.4,3462.4,2.3989]
[1721144326874,2.88729,3463.5,3462.5,2.88807]
[1721144326875,2.88746,3463.3,3462.5,2.88807]
[1721144327383,2.88729,3463.5,3462.4,2.3989]
[1721144327384,2.88752,3463.2,3462.4,2.3989]
[1721144327577,2.88752,3463.2,3462.5,0.61430459]
[1721144327886,2.88767,3463.0,3462.5,0.61430459]
[1721144329215,2.88776,3462.9,3462.5,0.61430459]
[1721144329415,2.88789,3462.8,3462.4,2.3989]
[1721144330178,2.88789,3462.8,3461.9,5.2819]
[1721144330375,2.88798,3462.7,3461.9,2.2819]
[1721144330688,2.88788,3462.8,3461.9,5.17047]
[1721144330875,5.77579,3462.8,3461.9,5.17047]
[1721144331078,2.88788,3462.8,3462.0,0.805916]
[1721144331278,2.88768,3463.0,3462.0,3.694356]
[1721144331602,3.284,3463.2,3462.0,0.805916]
[1721144331786,6.17156,3463.2,3462.3,2.88823]
[1721144332280,6.17156,3463.2,3462.5,2.3636]
[1721144334385,2.8873,3463.5,3462.6,2.88799]
[1721144334812,2.88721,3463.6,3462.7,2.8879]
[1721144335495,2.8873,3463.5,3462.7,2.8879]
[1721144335817,2.88734,3463.4,3462.8,0.813949]
[1721144336004,2.88734,3463.4,3462.5,5.25161]
[1721144336005,2.88734,3463.4,3462.6,2.88799]
[1721144336315,2.88734,3463.4,3462.7,2.88791]
[1721144337424,2.88717,3463.6,3462.7,2.88791]
[1721144337602,5.77458,3463.5,3462.7,2.88791]
[1721144337797,2.88725,3463.5,3462.7,3.701868]
[1721144338422,2.455,3463.3,3462.7,3.701868]
[1721144339120,2.455,3463.3,3462.7,0.813958]
[1721144339422,2.455,3463.3,3462.5,5.25167]
[1721144339727,2.455,3463.3,3462.5,8.13969]
[1721144340025,5.34248,3463.3,3462.5,2.3636]
[1721144340280,2.455,3462.9,3462.5,2.3636]
[1721144340696,2.455,3462.9,3461.9,2.4188]
[1721144340896,2.455,3462.5,3462.1,2.8884]
[1721144341306,2.455,3462.5,3462.0,0.54188]
[1721144342521,2.455,3462.5,3461.9,2.4188]
[1721144342708,2.455,3462.1,3461.1,2.88924]
[1721144342913,2.455,3462.1,3461.3,2.88902]
[1721144343087,2.88852,3462.0,3461.2,2.4188]
[1721144343288,2.455,3461.7,3461.2,2.4188]
[1721144343509,2.455,3461.7,3461.2,2.949611]
[1721144344037,2.455,3461.9,3461.2,2.949611]
[1721144344929,2.455,3461.9,3461.2,2.4188]
[1721144346851,2.88868,3461.8,3461.2,2.4188]
[1721144347417,2.455,3461.9,3461.2,2.4188]
[1721144347616,2.88843,3462.1,3461.3,2.88907]
[1721144348657,2.8885,3462.0,3461.2,2.4188]
[1721144348846,2.455,3461.8,3461.2,2.4188]
[1721144349042,2.455,3461.8,3461.2,5.838721]
[1721144349243,2.455,3461.8,3461.3,2.88908]
[1721144349557,2.455,3461.8,3461.2,2.949611]
[1721144351260,2.455,3461.8,3461.2,5.838781]
[1721144351591,4.50759011,3462.7,3461.2,5.838781]
[1721144351592,2.455,3462.3,3461.5,2.88889]
[1721144351764,2.455,3462.3,3461.8,2.88865]
[1721144352341,2.455,3462.3,3461.6,0.288889]
[1721144352342,2.455,3462.7,3461.9,2.4486]
[1721144352638,7.54581561,3464.4,3461.9,2.4486]
[1721144352639,2.88735,3463.4,3462.4,2.88808]
[1721144352844,2.88735,3463.4,3462.5,2.88802]
[1721144353049,2.88735,3463.4,3462.6,0.57761]
[1721144353245,2.455,3463.5,3462.7,2.2523]
[1721144353460,2.455,3463.5,3462.8,2.88783]
[1721144354540,2.455,3463.5,3462.7,5.14021]
[1721144354738,2.455,3463.5,3462.8,2.88783]
[1721144355483,2.455,3463.5,3463.0,2.88766]
[1721144355781,2.455,3464.0,3463.1,2.88752]
[1721144355959,2.455,3464.0,3462.9,0.860572]
[1721144356163,1.51155255,3464.4,3464.1,2.88674]
[1721144356391,1.51155255,3464.8,3464.3,2.88658]
[1721144356684,3.96655255,3465.1,3464.3,2.88658]
[1721144356844,3.96655255,3465.1,3464.4,2.88642]
[1721144357046,2.455,3465.1,3464.4,2.88642]
[1721144358270,6.15475,3465.3,3464.4,2.88642]
[1721144358459,6.15475,3465.3,3464.1,2.88673]
[1721144358664,6.15475,3465.3,3464.1,3.175403]
[1721144358868,3.269,3465.3,3464.0,2.88681]
[1721144359051,6.15525,3464.8,3463.7,2.88701]
[1721144359451,2.88627,3464.7,3463.8,2.887]
[1721144359848,3.269,3464.8,3463.8,2.88693]
[1721144360181,3.269,3464.8,3463.6,2.4134]
[1721144360483,2.88577,3465.3,3463.6,2.4134]
[1721144360484,6.15477,3465.3,3464.3,2.8865]
[1721144360668,2.88588,3465.2,3464.3,2.8865]
[1721144361463,2.88588,3465.2,3464.1,2.88675]
[1721144361659,2.88612,3464.9,3463.9,2.88689]
[1721144361859,6.15517,3464.8,3463.9,2.88689]
[1721144362075,6.15517,3464.8,3463.9,4.119086]
[1721144362457,6.15517,3464.8,3464.0,2.88682]
[1721144363474,3.269,3464.8,3463.6,5.4134]
[1721144363652,3.269,3464.8,3463.6,5.30055]
[1721144363653,2.88645,3464.5,3463.6,5.30055]
[1721144364788,2.8865,3464.4,3463.6,2.4134]
[1721144365011,2.88639,3464.6,3463.6,5.5419]
[1721144365309,3.269,3464.8,3463.8,2.887]
[1721144365310,2.88625,3464.7,3463.8,2.887]
[1721144365469,2.88634,3464.6,3463.6,2.65474]
[1721144365669,2.8865,3464.4,3463.7,0.265474]
[1721144366851,2.88634,3464.6,3463.7,0.265474]
[1721144367083,2.88634,3464.6,3463.7,3.152484]
[1721144367391,6.15519,3464.8,3463.8,2.88699]
[1721144367589,2.88593,3465.1,3464.1,2.88674]
[1721144367790,2.88603,3465.0,3464.2,0.577363]
[1721144367957,2.88603,3465.0,3464.3,2.3475]
[1721144368380,2.88583,3465.2,3464.3,2.3475]
[1721144368684,5.88592,3465.1,3464.3,2.3475]
[1721144368887,5.88592,3465.1,3464.3,3.2173223]
[1721144368888,2.886,3465.0,3464.3,3.2173223]
[1721144370595,2.886,3465.0,3464.3,2.3475]
[1721144370807,2.88618,3464.8,3464.3,2.3475]
[1721144371597,2.88642,3464.5,3464.3,2.3475]
[1721144372096,3.269,3464.8,3464.3,2.3475]
[1721144372298,2.88585,3465.2,3464.3,2.3475]
[1721144372502,2.88585,3465.2,3464.4,0.23475]
[1721144372663,2.88592,3465.1,3464.4,0.23475]
[1721144373069,3.269,3465.3,3464.4,0.23475]
[1721144373280,2.88593,3465.1,3464.4,0.23475]
[1721144373970,6.15476,3465.3,3464.4,0.23475]
[1721144374198,3.269,3465.3,3464.5,3.433224]
[1721144374404,2.88568,3465.4,3464.5,3.433224]
[1721144374771,2.88561,3465.5,3464.7,2.88624]
[1721144374971,2.88567,3465.4,3464.7,2.88624]
[1721144375195,2.88567,3465.4,3464.5,0.546884]
[1721144375407,2.88567,3465.4,3464.6,3.4878294]
[1721144375589,2.88567,3465.4,3464.7,2.3633]
[1721144375989,2.88545,3465.7,3464.8,2.88616]
[1721144376583,2.88552,3465.6,3464.7,2.3633]
[1721144376779,2.88552,3465.6,3464.7,5.24955]
[1721144376986,2.88552,3465.6,3464.8,0.87373794]
[1721144377814,2.8856,3465.5,3464.8,0.87373794]
[1721144378116,3.269,3465.8,3464.7,2.3633]
[1721144378315,2.8858,3465.3,3464.7,2.3633]
[1721144378482,2.88585,3465.2,3464.7,2.3633]
[1721144378683,2.88573,3465.4,3464.7,2.3633]
[1721144378883,2.88563,3465.5,3464.8,0.824957]
[1721144379281,2.88545,3465.7,3464.8,2.88612]
[1721144379485,2.8855,3465.6,3464.8,2.88612]
[1721144379689,2.88559,3465.5,3464.7,5.2495]
[1721144380011,2.88559,3465.5,3464.7,2.3633]
[1721144380183,2.88591,3465.2,3464.7,2.3633]
[1721144380388,2.452,3465.2,3464.7,2.923105]
[1721144380708,2.88575,3465.3,3464.7,2.923105]
[1721144381098,2.8856,3465.5,3464.7,2.923105]
[1721144381403,2.88568,3465.4,3464.7,2.923105]
[1721144381917,5.33756,3465.6,3464.7,5.809355]
[1721144382224,2.8856,3465.5,3464.8,1.1695635]
[1721144382731,5.77126,3465.5,3464.8,1.1695635]
[1721144383091,2.88571,3465.4,3464.8,1.1695635]
[1721144383291,2.8856,3465.5,3464.8,1.1695635]
[1721144384825,5.33755,3465.6,3464.8,1.1695635]
[1721144385013,5.33755,3465.6,3464.9,0.64191835]
[1721144386547,2.452,3465.6,3464.7,2.3633]
[1721144386739,2.88589,3465.2,3464.7,2.3633]
[1721144387261,2.88574,3465.4,3464.7,2.3633]
[1721144388449,2.88583,3465.2,3464.7,2.3633]
[1721144389217,2.88592,3465.1,3464.7,2.3633]
[1721144389464,2.88602,3465.0,3464.7,2.3633]
[1721144391881,2.452,3465.1,3464.7,2.3633]
[1721144392187,2.452,3465.1,3464.7,2.59963]
[1721144392338,5.3376,3465.5,3464.7,2.59963]
[1721144392866,2.88543,3465.7,3464.8,2.88612]
[1721144393048,2.88555,3465.6,3464.8,2.88612]
[1721144393377,2.88555,3465.6,3464.9,0.837202]
[1721144393670,0.005,3465.9,3465.7,2.88541]
[1721144393836,0.005,3465.9,3465.8,2.2507]
[1721144395473,0.005,3465.9,3465.8,5.13603]
[1721144395676,0.005,3465.9,3465.8,5.649633]
[1721144395876,0.005,3465.9,3465.8,6.284263]
[1721144396173,2.88411,3467.3,3465.9,8.0212]
[1721144396174,2.452,3467.3,3465.9,8.0212]
[1721144396375,5.33609,3467.3,3465.9,8.5712]
[1721144396979,2.452,3467.3,3465.9,14.50245]
[1721144397176,2.452,3467.3,3465.9,4.0408513]
[1721144397379,2.452,3466.9,3465.9,2.2507]
[1721144397579,2.452,3466.9,3465.9,8.0212]
[1721144397878,2.88387,3467.6,3465.9,8.0212]
[1721144398080,5.33605,3467.4,3465.9,10.90645]
[1721144398394,2.88409,3467.3,3465.9,10.90645]
[1721144398548,2.88409,3467.3,3466.5,2.88472]
[1721144399179,2.452,3467.4,3466.2,2.442]
[1721144399393,2.452,3467.4,3466.3,0.2442]
[1721144399697,0.00195017,3468.0,3466.7,5.488]
[1721144399863,0.00195017,3468.0,3467.4,2.3926]
[1721144400053,0.00195017,3468.0,3467.6,2.88383]
[1721144400255,0.00195017,3468.0,3467.9,2.3926]
[1721144400497,0.00195017,3468.0,3467.9,8.15976]
[1721144400714,0.005,3468.2,3468.1,11.20544]
[1721144401031,2.88202,3469.8,3468.4,2.3926]
[1721144401189,2.452,3469.6,3468.5,0.54386]
[1721144401375,5.33418,3469.6,3468.6,2.88294]
[1721144401577,2.88226,3469.5,3468.6,2.88294]
[1721144401819,2.88246,3469.3,3468.4,2.3926]
[1721144401984,2.88148,3470.5,3468.4,2.3926]
[1721144401985,2.452,3469.0,3468.4,2.3926]
[1721144402186,2.88326,3468.3,3467.6,2.2528]
[1721144402396,3.264,3468.5,3466.7,2.88457]
[1721144402397,2.88351,3468.0,3466.7,2.2528]
[1721144402602,2.88401,3467.4,3466.7,2.766546]
[1721144402799,6.14801,3467.4,3466.7,2.2528]
[1721144403008,3.264,3467.4,3466.7,2.2528]
[1721144403229,2.88392,3467.5,3466.7,2.2528]
[1721144403516,2.88392,3467.5,3466.0,3.046]
[1721144403517,6.1485,3466.9,3465.9,2.2528]
[1721144403805,6.1485,3466.9,3465.9,5.651853]
[1721144404012,3.264,3466.9,3466.0,2.88509]
[1721144404231,6.264,3467.4,3466.0,2.88509]
[1721144404841,2.88431,3467.1,3466.2,2.88499]
[1721144405128,2.88434,3467.0,3466.3,0.577008]
[1721144405276,6.264,3467.4,3465.9,2.766613]
[1721144405497,3.264,3466.8,3465.9,2.766613]
[1721144405696,3.264,3466.8,3465.9,5.651843]
[1721144405899,2.88425,3467.1,3465.9,5.651843]
[1721144406128,6.14813,3467.3,3466.2,2.88499]
[1721144406334,3.264,3467.3,3466.3,3.461905]
[1721144406517,3.264,3467.3,3466.4,2.8848]
[1721144406716,3.264,3467.3,3465.9,2.766613]
[1721144406933,2.88476,3466.5,3465.9,2.2528]
[1721144407708,2.88501,3466.2,3465.9,2.2528]
[1721144408027,2.88517,3466.0,3465.3,2.2844]
[1721144408428,2.88509,3466.1,3465.3,2.2844]
[1721144408618,2.88517,3466.0,3465.3,2.2844]
[1721144408819,2.88517,3466.0,3465.4,0.517031]
[1721144409016,2.88517,3466.0,3465.3,2.2844]
[1721144409238,2.88509,3466.1,3465.3,2.2844]
[1721144409615,2.88519,3466.0,3465.3,2.2844]
[1721144409940,2.88509,3466.1,3465.3,2.2844]
[1721144410517,6.14948,3465.7,3465.3,2.2844]
[1721144410717,6.14942,3465.7,3464.6,2.2815]
[1721144410948,2.88559,3465.5,3464.7,0.22815]
[1721144411159,2.8855,3465.6,3464.7,0.22815]
[1721144411315,2.88563,3465.5,3464.7,0.22815]
[1721144411521,2.88567,3465.4,3464.7,0.22815]
[1721144411770,2.88559,3465.5,3464.7,0.22815]
[1721144412119,6.14942,3465.7,3464.7,0.22815]
[1721144412355,6.14942,3465.7,3464.8,0.539598]
[1721144412516,2.88558,3465.5,3464.8,0.539598]
[1721144412952,3.264,3465.7,3464.8,3.425748]
[1721144413164,3.0,3466.6,3465.1,2.8859]
[1721144413165,6.14907,3466.2,3465.1,2.8859]
[1721144413453,2.88517,3466.0,3465.2,2.65229]
[1721144414021,2.88572,3465.4,3464.7,0.22815]
[1721144414271,2.88576,3465.3,3464.7,0.22815]
[1721144414428,3.264,3465.2,3464.7,0.22815]
[1721144414956,3.264,3465.2,3464.6,2.3089]
[1721144415166,2.88617,3464.8,3463.8,2.3089]
[1721144415482,2.88625,3464.7,3463.8,2.3089]
[1721144415708,2.88653,3464.4,3463.8,2.3089]
[1721144416994,3.264,3464.7,3463.8,2.3089]
[1721144417199,2.88611,3464.9,3463.9,0.23089]
[1721144417502,3.264,3465.2,3463.9,0.23089]
[1721144417778,2.88618,3464.8,3463.9,0.23089]
[1721144418454,2.88625,3464.7,3463.9,0.23089]
[1721144418803,2.88635,3464.6,3463.9,0.23089]
[1721144419102,2.88678,3464.1,3463.8,2.3089]
[1721144420450,2.88685,3464.0,3463.0,2.4104]
[1721144420656,2.88684,3464.0,3463.0,2.4104]
[1721144421064,2.88701,3463.8,3463.0,2.4104]
[1721144421269,2.88684,3464.0,3463.0,5.29805]
[1721144421589,2.88656,3464.4,3463.4,2.88732]
[1721144421775,2.88635,3464.6,3463.4,2.88732]
[1721144421974,2.88658,3464.3,3463.4,2.88732]
[1721144422183,2.88658,3464.3,3463.2,2.88749]
[1721144422361,3.264,3464.7,3463.7,2.88707]